bitfinex/quotes_BTCUSD_20220303
["timestamp","ask_amount","ask_price","bid_price","bid_amount"]
[1646334948388,0.13669824,42412.0,42407.0,2.79826658]
[1646334948591,0.0473,42411.0,42407.0,2.79826658]
[1646334948791,0.0473,42411.0,42407.0,2.7984054]
[1646334948989,0.0473,42411.0,42407.0,2.79854422]
[1646334949449,0.17702193,42408.0,42407.0,2.79834184]
[1646334949645,0.17702193,42408.0,42407.0,2.79820302]
[1646334949646,0.22432193,42408.0,42407.0,2.79820302]
[1646334950042,0.0473,42408.0,42407.0,2.79834184]
[1646334950245,0.0473,42408.0,42407.0,2.79848066]
[1646334950844,0.0473,42408.0,42407.0,2.79834184]
[1646334951043,0.20700275,42408.0,42407.0,2.7980642]
[1646334951446,0.0473,42408.0,42407.0,2.7980642]
[1646334952445,0.20531554,42408.0,42407.0,2.7980642]
[1646334952646,0.0473,42408.0,42407.0,2.7980642]
[1646334959536,0.084004,42412.0,42407.0,2.7980642]
[1646334959735,0.084004,42412.0,42408.0,0.24147605]
[1646334959736,0.025,42412.0,42408.0,0.24147605]
[1646334959934,0.058998,42417.0,42407.0,2.7980642]
[1646334960332,0.058998,42417.0,42408.0,0.00012015]
[1646334960582,0.09883819,42413.0,42408.0,0.0002403]
[1646334960783,0.059002,42412.0,42408.0,0.00036045]
[1646334961186,0.25039267,42412.0,42408.0,0.0002403]
[1646334961384,0.059002,42412.0,42408.0,0.00012015]
[1646334961784,0.059002,42412.0,42407.0,2.66474667]
[1646334961984,0.059002,42412.0,42408.0,0.0002403]
[1646334962586,0.059002,42412.0,42408.0,0.0012403]
[1646334962785,0.059002,42412.0,42408.0,0.001]
[1646334963885,0.059002,42412.0,42407.0,2.66474667]
[1646334964086,0.059002,42412.0,42403.0,0.15]
[1646334964532,0.059002,42412.0,42406.0,0.00011115]
[1646334964932,0.059002,42412.0,42406.0,0.00033345]
[1646334965334,0.12110539,42412.0,42406.0,0.00033345]
[1646334965536,0.12110539,42412.0,42406.0,0.0002223]
[1646334965733,0.12110539,42412.0,42405.0,0.15]
[1646334965934,0.12110539,42412.0,42406.0,0.00010453]
[1646334966135,0.12110539,42412.0,42406.0,0.00020906]
[1646334966433,0.12110539,42412.0,42406.0,0.00031359]
[1646334966937,0.13573827,42408.0,42406.0,0.00020906]
[1646334967134,0.13573827,42408.0,42406.0,0.00010453]
[1646334967135,0.43573827,42407.0,42406.0,0.00010453]
[1646334967340,0.18303827,42407.0,42406.0,0.00010785]
[1646334967533,0.18303827,42407.0,42406.0,0.0002157]
[1646334967733,0.18303827,42407.0,42406.0,0.00032355]
[1646334968178,0.18303827,42407.0,42406.0,0.00010785]
[1646334968378,0.18303827,42407.0,42397.0,0.115]
[1646334968585,0.085847,42406.0,42397.0,0.115]
[1646334968778,0.0473,42405.0,42397.0,0.115]
[1646334968979,0.2091591,42404.0,42396.0,0.15]
[1646334969179,0.1957331,42404.0,42396.0,0.15]
[1646334969779,0.06340427,42402.0,42398.0,0.00014543]
[1646334969982,0.0473,42401.0,42398.0,0.00043629]
[1646334970582,0.0473,42401.0,42398.0,0.00529086]
[1646334970781,0.0473,42401.0,42398.0,0.005]
[1646334971846,0.0473,42401.0,42397.0,0.00029086]
[1646334972147,0.0473,42401.0,42396.0,0.15]
[1646334972348,0.04723767,42401.0,42397.0,0.00014543]
[1646334972552,0.04723767,42401.0,42397.0,0.00029086]
[1646334972746,0.04723767,42401.0,42397.0,0.00043629]
[1646334973246,0.04723767,42401.0,42397.0,0.00029086]
[1646334973446,0.04723767,42401.0,42396.0,0.15]
[1646334973645,0.04723767,42401.0,42397.0,0.00014543]
[1646334973846,0.04723767,42401.0,42397.0,0.00029086]
[1646334974047,0.04723767,42401.0,42397.0,0.00043629]
[1646334974645,0.04723767,42401.0,42397.0,0.00643629]
[1646334974849,0.04723767,42401.0,42397.0,0.00629086]
[1646334975049,0.04723767,42401.0,42397.0,0.006]
[1646334975249,0.04723767,42401.0,42397.0,0.00610966]
[1646334975450,0.04723767,42401.0,42397.0,0.00621932]
[1646334975682,0.04723767,42401.0,42397.0,0.00632898]
[1646334975883,0.04723767,42401.0,42397.0,0.00032898]
[1646334976087,0.04723767,42401.0,42397.0,0.00021932]
[1646334976284,0.04723767,42401.0,42397.0,0.00010966]
[1646334976684,0.04723767,42401.0,42399.0,0.15]
[1646334978287,0.0473,42408.0,42399.0,0.15]
[1646334978486,0.0473,42413.0,42402.0,0.15]
[1646334978685,0.0384998,42416.0,42402.0,0.15]
[1646334978885,0.1573636,42409.0,42402.0,0.15]
[1646334979085,0.33731975,42416.0,42405.0,0.00012184]
[1646334979086,0.06735718,42411.0,42405.0,0.00012184]
[1646334979332,0.12013586,42412.0,42405.0,0.15024368]
[1646334979532,0.12013586,42412.0,42405.0,0.15036552]
[1646334979932,0.17913886,42412.0,42405.0,0.15024368]
[1646334980138,0.17570576,42410.0,42405.0,0.15012184]
[1646334980341,0.17570576,42410.0,42406.0,0.00012184]
[1646334980734,0.17570576,42410.0,42406.0,0.00024368]
[1646334980935,0.17570576,42410.0,42406.0,0.00036552]
[1646334981136,0.17913886,42412.0,42406.0,0.00036552]
[1646334981335,0.17913886,42412.0,42406.0,0.00024368]
[1646334981535,0.06695773,42414.0,42406.0,0.15012184]
[1646334981737,0.06695773,42414.0,42406.0,0.15015579]
[1646334981938,0.03731975,42416.0,42410.0,0.15]
[1646334982135,0.1774965,42414.0,42410.0,0.15]
[1646334982336,0.03731975,42416.0,42410.0,0.15]
[1646334984191,0.10406945,42416.0,42410.0,0.15]
[1646334984692,0.10406945,42416.0,42410.0,0.156]
[1646334985495,0.09406945,42416.0,42410.0,0.156]
[1646334985895,0.09406945,42416.0,42410.0,0.15]
[1646334986097,0.0917497,42416.0,42410.0,0.15]
[1646334986696,0.0917497,42416.0,42410.0,0.156]
[1646334987938,0.0917497,42416.0,42410.0,0.15]
[1646334988336,0.025,42416.0,42410.0,0.15]
[1646334988536,0.025,42416.0,42410.0,0.156]
[1646334989937,0.025,42416.0,42410.0,0.15]
[1646334990136,0.257847,42416.0,42410.0,0.15]
[1646334990337,0.08369595,42416.0,42410.0,0.15]
[1646334991388,0.10313476,42412.0,42410.0,0.15]
[1646334992588,0.10313476,42412.0,42410.0,0.153]
[1646334993892,0.025,42416.0,42410.0,0.15]
[1646334994735,0.11942775,42415.0,42410.0,0.154]
[1646334995236,0.18696537,42415.0,42410.0,0.154]
[1646334995837,0.11942775,42415.0,42410.0,0.154]
[1646334996035,0.11942775,42415.0,42410.0,0.15]
[1646334996639,0.11942775,42415.0,42410.0,0.153]
[1646334996836,0.11942775,42415.0,42410.0,0.003]
[1646334997136,0.11942775,42415.0,42413.0,0.15]
[1646334998791,0.03511601,42419.0,42413.0,0.151]
[1646334999191,0.00023082,42426.0,42413.0,0.151]
[1646334999192,0.02580498,42426.0,42418.0,0.15]
[1646334999391,0.02580498,42426.0,42413.0,0.001]
[1646334999392,0.00034623,42426.0,42413.0,0.001]
[1646334999590,0.00023082,42426.0,42422.0,0.15]
[1646334999790,0.20731194,42424.0,42422.0,0.15]
[1646335000590,0.20731194,42424.0,42422.0,0.153]
[1646335000791,0.1909804,42423.0,42422.0,0.153]
[1646335001193,0.1909804,42423.0,42422.0,0.003]
[1646335001836,0.1909804,42423.0,42416.0,0.15]
[1646335002235,0.1194292,42419.0,42416.0,0.15]
[1646335002437,0.07483438,42418.0,42413.0,0.15]
[1646335003137,0.1194292,42419.0,42413.0,0.15]
[1646335003539,0.1194292,42419.0,42416.0,0.15]
[1646335004739,0.1194292,42419.0,42416.0,0.156]
[1646335004939,0.1144292,42419.0,42416.0,0.156]
[1646335005338,0.0473,42423.0,42416.0,0.156]
[1646335005990,0.00034065,42426.0,42416.0,0.15]
[1646335006388,0.0002271,42426.0,42416.0,0.15]
[1646335006592,0.0002271,42426.0,42410.0,0.14711]
[1646335006593,0.00011355,42426.0,42421.0,0.15]
[1646335006791,0.083977,42430.0,42422.0,0.15]
[1646335006990,0.00011356,42426.0,42422.0,0.15]
[1646335007189,0.00034068,42426.0,42425.0,0.15]
[1646335008090,0.00011356,42426.0,42425.0,0.15]
[1646335008292,0.21678895,42429.0,42425.0,0.15]
[1646335008493,0.21678895,42429.0,42421.0,0.15]
[1646335008494,0.00023332,42428.0,42421.0,0.15]
[1646335008696,0.00034998,42428.0,42421.0,0.15]
[1646335009342,0.09531328,42422.0,42421.0,0.15]
[1646335010344,0.27278619,42422.0,42421.0,0.15]
[1646335010542,0.09531328,42422.0,42418.0,0.15]
[1646335010742,0.09531328,42422.0,42416.0,0.005]
[1646335010942,0.09531328,42422.0,42421.0,0.15]
[1646335013199,0.09531328,42422.0,42417.0,0.15]
[1646335013600,0.16690892,42419.0,42417.0,0.15]
[1646335013799,0.09531328,42422.0,42417.0,0.15]
[1646335014003,0.0473,42421.0,42417.0,0.15]
[1646335014408,0.21456185,42418.0,42417.0,0.15]
[1646335014799,0.0473,42421.0,42417.0,0.15]
[1646335015700,0.16959933,42418.0,42417.0,0.15]
[1646335016102,0.0473,42421.0,42417.0,0.15]
[1646335016508,0.0473,42421.0,42409.0,0.1244]
[1646335016509,0.3473,42421.0,42411.0,0.15]
[1646335016707,0.058993,42419.0,42412.0,0.003]
[1646335016945,0.46529,42421.0,42412.0,0.003]
[1646335016946,0.16957133,42415.0,42412.0,0.003]
[1646335017145,0.0473,42414.0,42412.0,0.003]
[1646335017547,0.11057947,42413.0,42412.0,0.003]
[1646335017748,0.15787947,42413.0,42412.0,0.003]
[1646335017945,0.34325676,42413.0,42412.0,0.003]
[1646335018746,0.34625676,42413.0,42412.0,0.003]
[1646335019149,0.40526176,42413.0,42412.0,0.003]
[1646335019746,0.70526176,42413.0,42412.0,0.003]
[1646335019948,0.70226176,42413.0,42404.0,0.114]
[1646335020147,0.70226176,42413.0,42402.0,0.15]
[1646335020349,0.70226176,42413.0,42406.0,0.00013866]
[1646335020598,0.70226176,42413.0,42406.0,0.00027732]
[1646335020794,0.70226176,42413.0,42406.0,0.00041598]
[1646335020997,0.059007,42409.0,42406.0,0.00041598]
[1646335021196,0.3473,42408.0,42406.0,0.00041598]
[1646335021393,0.3473,42408.0,42406.0,0.00013866]
[1646335021394,0.3,42407.0,42406.0,0.00013866]
[1646335021594,0.3,42407.0,42398.0,0.15]
[1646335021595,0.3473,42407.0,42398.0,0.15]
[1646335021796,0.11936821,42406.0,42405.0,0.00013866]
[1646335021994,0.16666821,42406.0,42405.0,0.00027732]
[1646335022192,0.16666821,42406.0,42405.0,0.00041598]
[1646335022593,0.22894906,42406.0,42405.0,0.00027732]
[1646335022795,0.22894906,42406.0,42405.0,0.00013866]
[1646335022996,0.22894906,42406.0,42403.0,0.00013608]
[1646335023498,0.059014,42405.0,42403.0,0.00040824]
[1646335023698,0.0473,42404.0,42403.0,0.00040824]
[1646335024096,0.0473,42404.0,42403.0,0.00027216]
[1646335024097,0.21566384,42404.0,42403.0,0.00027216]
[1646335024340,0.21566384,42404.0,42395.0,0.16178]
[1646335024539,0.0473,42404.0,42401.0,0.00013608]
[1646335024738,0.0473,42404.0,42401.0,0.00027216]
[1646335024937,0.0473,42404.0,42401.0,0.00040824]
[1646335025338,0.0473,42404.0,42401.0,0.00027216]
[1646335025539,0.17336913,42403.0,42395.0,0.16178]
[1646335025742,0.0473,42402.0,42400.0,0.00013608]
[1646335025939,0.14678944,42401.0,42400.0,0.00027216]
[1646335026139,0.14678944,42401.0,42400.0,0.00040824]
[1646335026640,0.14678944,42401.0,42400.0,0.00027216]
[1646335026842,0.14678944,42401.0,42400.0,0.002]
[1646335027841,0.0473,42401.0,42400.0,0.002]
[1646335028086,0.21093413,42410.0,42399.0,0.3]
[1646335028284,0.07171032,42409.0,42399.0,0.3]
[1646335028485,0.07171032,42409.0,42402.0,0.15]
[1646335028683,0.21093413,42410.0,42402.0,0.15]
[1646335028884,0.10866678,42407.0,42402.0,0.15]
[1646335029488,0.10866678,42407.0,42402.0,0.14990334]
[1646335029684,0.10866678,42407.0,42402.0,0.14999324]
[1646335030088,0.10866678,42407.0,42402.0,0.15008314]
[1646335030387,0.10866678,42407.0,42402.0,0.15017304]
[1646335030784,0.10866678,42407.0,42402.0,0.15008314]
[1646335030985,0.10866678,42407.0,42402.0,0.14999324]
[1646335031586,0.10866678,42407.0,42402.0,0.15017304]
[1646335032269,0.10866678,42407.0,42402.0,0.15008314]
[1646335032469,0.10866678,42407.0,42402.0,0.14999324]
[1646335032870,0.10866678,42407.0,42402.0,0.15008314]
[1646335033070,0.10866678,42407.0,42402.0,0.15017304]
[1646335033270,0.17839537,42404.0,42402.0,0.15017304]
[1646335033469,0.17839537,42404.0,42402.0,0.15008314]
[1646335033672,0.10866678,42407.0,42402.0,8.99e-05]
[1646335033870,0.10866678,42407.0,42401.0,0.00011431]
[1646335034170,0.10866678,42407.0,42401.0,0.00022862]
[1646335034371,0.10866678,42407.0,42401.0,0.00034293]
[1646335034870,0.10866678,42407.0,42401.0,0.00422862]
[1646335035069,0.10866678,42407.0,42401.0,0.00411431]
[1646335035269,0.10866678,42407.0,42402.0,0.0001143]
[1646335035470,0.10866678,42407.0,42402.0,0.15001764]
[1646335035685,0.10866678,42407.0,42402.0,0.15024624]
[1646335036186,0.10866678,42407.0,42402.0,0.15013194]
[1646335036385,0.10866678,42407.0,42402.0,0.15001764]
[1646335036784,0.10866678,42407.0,42402.0,0.15013194]
[1646335036985,0.10866678,42407.0,42402.0,0.15024624]
[1646335037586,0.10866678,42407.0,42402.0,0.15013194]
[1646335037789,0.10866678,42407.0,42402.0,0.14990334]
[1646335037986,0.10866678,42407.0,42402.0,0.15003762]
[1646335038188,0.10866678,42407.0,42402.0,0.00040284]
[1646335038886,0.10866678,42407.0,42402.0,0.00013428]
[1646335039086,0.10866678,42407.0,42397.0,0.304]
[1646335039338,0.10866678,42407.0,42402.0,0.15003762]
[1646335039540,0.10866678,42407.0,42402.0,0.15030618]
[1646335040238,0.10866678,42407.0,42402.0,0.15003762]
[1646335040639,0.10866678,42407.0,42402.0,0.1501719]
[1646335040839,0.10866678,42407.0,42402.0,0.15030618]
[1646335041439,0.10866678,42407.0,42402.0,0.1501719]
[1646335041642,0.10866678,42407.0,42402.0,0.15003762]
[1646335041840,0.10866678,42407.0,42402.0,0.00011345]
[1646335042040,0.10866678,42407.0,42402.0,0.0002269]
[1646335042242,0.10866678,42407.0,42402.0,0.00034035]
[1646335042840,0.10866678,42407.0,42402.0,0.0002269]
[1646335043091,0.10866678,42407.0,42399.0,0.14990334]
[1646335043292,0.10866678,42407.0,42402.0,0.0002269]
[1646335043593,0.10866678,42407.0,42402.0,0.00034035]
[1646335044094,0.0473,42406.0,42402.0,0.0002269]
[1646335044293,0.0473,42406.0,42396.0,0.14990334]
[1646335044492,0.0473,42406.0,42402.0,0.00010248]
[1646335044692,0.0473,42406.0,42402.0,0.00030744]
[1646335045293,0.0473,42406.0,42402.0,0.00020496]
[1646335045494,0.0473,42406.0,42402.0,0.00010248]
[1646335045696,0.09170297,42400.0,42397.0,0.004]
[1646335046295,0.0473,42403.0,42397.0,0.004]
[1646335046496,0.0473,42403.0,42400.0,0.14990334]
[1646335046939,0.16524804,42404.0,42400.0,0.14990334]
[1646335047140,0.00118008,42407.0,42400.0,0.14990334]
[1646335047340,0.10007091,42406.0,42400.0,0.14990334]
[1646335048344,0.10007091,42406.0,42401.0,0.00010196]
[1646335048542,0.10007091,42406.0,42401.0,0.00020392]
[1646335048743,0.10007091,42406.0,42401.0,0.00030588]
[1646335049142,0.10007091,42406.0,42401.0,0.00020392]
[1646335049342,0.10007091,42406.0,42401.0,0.00010196]
[1646335049543,0.10007091,42406.0,42401.0,0.30014366]
[1646335049743,0.18802311,42410.0,42401.0,0.30028732]
[1646335049943,0.18802311,42410.0,42403.0,0.14990334]
[1646335050152,0.24577991,42412.0,42404.0,0.3]
[1646335050345,0.24577991,42412.0,42403.0,0.14990334]
[1646335050595,0.24577991,42412.0,42404.0,0.3]
[1646335050791,0.00117991,42412.0,42405.0,0.00014365]
[1646335050990,0.00117991,42412.0,42405.0,6.73e-05]
[1646335051190,0.00117991,42412.0,42405.0,0.00021095]
[1646335051389,0.00117991,42412.0,42405.0,0.0003546]
[1646335051588,0.25090216,42413.0,42405.0,0.0003546]
[1646335051790,0.08967602,42413.0,42405.0,0.0002873]
[1646335051990,0.08967602,42413.0,42404.0,0.309]
[1646335052193,0.08967602,42413.0,42404.0,0.30908349]
[1646335052590,0.08967602,42413.0,42404.0,0.30916698]
[1646335052794,0.08967602,42413.0,42404.0,0.30925047]
[1646335052795,0.24831772,42413.0,42404.0,0.30925047]
[1646335052991,0.24831772,42413.0,42404.0,0.00925047]
[1646335053194,0.08967602,42413.0,42404.0,0.00916698]
[1646335053392,0.08967602,42413.0,42405.0,0.14990334]
[1646335053795,0.0473,42418.0,42407.0,0.14990334]
[1646335053993,0.00117971,42419.0,42407.0,0.14990334]
[1646335054440,0.20227787,42419.0,42407.0,0.14990334]
[1646335054637,0.00117971,42419.0,42415.0,0.14990334]
[1646335054840,0.00117971,42419.0,42416.0,0.3]
[1646335055837,0.28683418,42422.0,42416.0,0.3]
[1646335056037,0.10251162,42422.0,42416.0,0.3]
[1646335056738,0.10251162,42422.0,42416.0,0.306]
[1646335057139,0.00047907,42424.0,42416.0,0.306]
[1646335057338,0.00047907,42424.0,42422.0,0.14990334]
[1646335057544,0.00015969,42424.0,42422.0,0.14990334]
[1646335057739,0.00117946,42427.0,42422.0,0.14990334]
[1646335057944,0.00015969,42424.0,42422.0,0.14990334]
[1646335058212,0.00047907,42424.0,42422.0,0.14990334]
[1646335058405,0.00047907,42424.0,42417.0,0.3]
[1646335058703,0.00031938,42424.0,42422.0,0.006]
[1646335058904,0.00015969,42424.0,42422.0,0.006]
[1646335059104,0.12043258,42426.0,42422.0,0.006]
[1646335059306,0.00012646,42425.0,42422.0,0.006]
[1646335059503,0.00025292,42425.0,42422.0,0.006]
[1646335059707,0.05936338,42425.0,42422.0,0.006]
[1646335059906,0.20787615,42423.0,42422.0,0.006]
[1646335060107,0.20787615,42423.0,42415.0,0.14990334]
[1646335060305,0.25517615,42423.0,42415.0,0.14990334]
[1646335060707,0.0473,42423.0,42415.0,0.14990334]
[1646335060907,0.0473,42423.0,42415.0,0.45690334]
[1646335062161,0.0473,42423.0,42419.0,0.14990334]
[1646335062361,0.00030411,42424.0,42419.0,0.14990334]
[1646335062563,0.00030411,42424.0,42422.0,0.14990334]
[1646335062765,0.00020274,42424.0,42423.0,0.3]
[1646335062964,0.00010137,42424.0,42422.0,0.14990334]
[1646335063168,0.00117944,42428.0,42422.0,0.14990334]
[1646335063468,0.00010138,42425.0,42422.0,0.14990334]
[1646335063665,0.00030414,42425.0,42422.0,0.14990334]
[1646335063865,0.00030414,42425.0,42420.0,0.14990334]
[1646335064067,0.0530899,42425.0,42416.0,0.14990334]
[1646335064265,0.00010138,42425.0,42416.0,0.14990334]
[1646335064465,0.27018493,42429.0,42415.0,0.3]
[1646335064665,0.1121116,42422.0,42417.0,0.14990334]
[1646335065366,0.1710986,42422.0,42417.0,0.14990334]
[1646335065593,0.1710986,42422.0,42414.0,0.1128]
[1646335065594,0.1594116,42422.0,42414.0,0.1128]
[1646335065794,0.3699991,42416.0,42411.0,0.01678]
[1646335065990,0.09955352,42415.0,42411.0,0.01678]
[1646335066189,0.09955352,42415.0,42404.0,0.1192716]
[1646335066391,0.0473,42414.0,42405.0,0.14990334]
[1646335066592,0.0473,42413.0,42406.0,0.3]
[1646335066791,0.0473,42415.0,42408.0,0.14990334]
[1646335067492,0.21576571,42414.0,42408.0,0.14990334]
[1646335067693,0.13230702,42415.0,42408.0,0.14990334]
[1646335068593,0.32892276,42415.0,42408.0,0.14990334]
[1646335068794,0.19340957,42412.0,42408.0,0.14990334]
[1646335068993,0.32892276,42415.0,42408.0,0.14990334]
[1646335069450,0.29755109,42414.0,42404.0,0.26919488]
[1646335069645,0.29755109,42414.0,42404.0,0.00029154]
[1646335069646,0.15508496,42407.0,42404.0,0.00029154]
[1646335069846,0.0473,42406.0,42403.0,0.005]
[1646335070045,0.0473,42406.0,42404.0,0.00014577]
[1646335070245,0.0473,42406.0,42404.0,0.00043731]
[1646335070644,0.0473,42406.0,42404.0,0.00029154]
[1646335070845,0.0473,42406.0,42404.0,0.15704911]
[1646335071045,0.0473,42406.0,42404.0,0.15690334]
[1646335071244,0.15857034,42410.0,42404.0,0.15690334]
[1646335071845,0.00117991,42410.0,42404.0,0.15690334]
[1646335072046,0.00117991,42410.0,42404.0,0.14990334]
[1646335072444,0.00117991,42410.0,42404.0,0.14999257]
[1646335072645,0.21011982,42411.0,42404.0,0.1500818]
[1646335072845,0.19319506,42409.0,42404.0,0.15708206]
[1646335073300,0.19319506,42409.0,42404.0,0.15699283]
[1646335073600,0.0473,42412.0,42404.0,0.15681437]
[1646335073797,0.0473,42412.0,42404.0,0.1569036]
[1646335073997,0.0473,42412.0,42404.0,0.15708206]
[1646335074198,0.0473,42412.0,42404.0,0.15008206]
[1646335074600,0.0473,42412.0,42404.0,0.14999283]
[1646335074798,0.0473,42412.0,42404.0,0.1559036]
[1646335074999,0.0473,42412.0,42404.0,0.15592841]
[1646335075200,0.20587685,42407.0,42404.0,0.15604245]
[1646335075398,0.20652872,42408.0,42404.0,0.15615649]
[1646335076001,0.0473,42412.0,42404.0,0.15004245]
[1646335076305,0.18196472,42409.0,42404.0,0.14994066]
[1646335076498,0.18196472,42409.0,42404.0,0.15006695]
[1646335076699,0.0473,42412.0,42404.0,0.15019324]
[1646335076943,0.0473,42412.0,42404.0,0.15619324]
[1646335077144,0.16566224,42410.0,42404.0,0.15619324]
[1646335077343,0.16566224,42410.0,42404.0,0.15594066]
[1646335077546,0.16566224,42410.0,42404.0,0.15581437]
[1646335077743,0.16566224,42410.0,42404.0,0.15594066]
[1646335077944,0.16566224,42410.0,42404.0,0.15606695]
[1646335078243,0.16566224,42410.0,42404.0,0.15019324]
[1646335078445,0.16566224,42410.0,42404.0,0.15006695]
[1646335078648,0.16566224,42410.0,42404.0,0.14994066]
[1646335078846,0.16566224,42410.0,42404.0,0.15590723]
[1646335079044,0.16566224,42410.0,42404.0,0.15600009]
[1646335079243,0.16566224,42410.0,42404.0,0.15609295]
[1646335079444,0.16566224,42410.0,42404.0,0.00627858]
[1646335079843,0.16123215,42406.0,42404.0,0.00618572]
[1646335080044,0.16123215,42406.0,42404.0,0.006]
[1646335080345,0.08936669,42405.0,42404.0,0.00018572]
[1646335080598,0.38936669,42405.0,42404.0,0.00027858]
[1646335080800,0.43666669,42405.0,42404.0,0.00027858]
[1646335081000,0.43666669,42405.0,42404.0,0.00018572]
[1646335081200,0.43666669,42405.0,42404.0,9.286e-05]
[1646335081402,0.43666669,42405.0,42399.0,0.00637148]
[1646335081403,0.43666669,42405.0,42402.0,9.286e-05]
[1646335081601,0.43666669,42405.0,42402.0,0.00018572]
[1646335081800,0.43666669,42405.0,42402.0,0.00027858]
[1646335082400,0.43666669,42405.0,42402.0,9.286e-05]
[1646335082600,0.43666669,42405.0,42396.0,0.14981437]
[1646335082801,0.43666669,42405.0,42401.0,0.00011167]
[1646335083002,0.13966669,42405.0,42401.0,0.00022334]
[1646335083203,0.13966669,42405.0,42401.0,0.00033501]
[1646335083502,0.35427919,42405.0,42401.0,0.00033501]
[1646335083701,0.13966669,42405.0,42401.0,0.00022334]
[1646335083903,0.13966669,42405.0,42397.0,0.001]
[1646335084101,0.13666669,42405.0,42401.0,0.00011167]
[1646335084344,0.05453203,42404.0,42401.0,0.00033501]
[1646335084545,0.0473,42403.0,42401.0,0.00033501]
[1646335084945,0.0473,42403.0,42401.0,0.00122334]
[1646335085146,0.0473,42403.0,42401.0,0.001]
[1646335085947,0.05405874,42402.0,42401.0,0.001]
[1646335086146,0.05405874,42402.0,42400.0,0.00022334]
[1646335086349,0.0473,42403.0,42400.0,0.00011167]
[1646335086551,0.0473,42403.0,42394.0,0.14981437]
[1646335086846,0.0473,42403.0,42395.0,0.003]
[1646335087048,0.0473,42403.0,42399.0,0.00022046]
[1646335087846,0.08930749,42404.0,42395.0,0.003]
[1646335088093,0.08930749,42404.0,42399.0,0.00011023]
[1646335088294,0.08930749,42404.0,42399.0,0.00022046]
[1646335088494,0.08930749,42404.0,42399.0,0.00033069]
[1646335088894,0.08930749,42404.0,42399.0,0.00422046]
[1646335089096,0.17001211,42403.0,42399.0,0.004]
[1646335089294,0.17001211,42403.0,42399.0,0.00411023]
[1646335089496,0.08930749,42404.0,42399.0,0.00422046]
[1646335089693,0.08930749,42404.0,42399.0,0.00433069]
[1646335089897,0.05,42412.0,42399.0,0.00433069]
[1646335090097,0.05,42412.0,42401.0,0.14981437]
[1646335090296,0.3,42411.0,42401.0,0.14981437]
[1646335090498,0.21655789,42405.0,42401.0,0.14981437]
[1646335090695,0.3,42411.0,42402.0,0.0001349]
[1646335090899,0.10662086,42407.0,42402.0,0.0002698]
[1646335091097,0.10662086,42407.0,42402.0,0.0004047]
[1646335091496,0.10662086,42407.0,42402.0,0.0002698]
[1646335091699,0.10662086,42407.0,42401.0,0.15681437]
[1646335091964,0.09879898,42410.0,42402.0,0.0001349]
[1646335092164,0.09879898,42410.0,42402.0,0.0002698]
[1646335092468,0.109002,42412.0,42402.0,0.0004047]
[1646335092666,0.059002,42412.0,42402.0,0.0004047]
[1646335092867,0.1153,42414.0,42404.0,0.14981437]
[1646335093069,0.15328247,42405.0,42404.0,0.14981437]
[1646335093268,0.2509,42415.0,42404.0,0.14981437]
[1646335093468,0.11652673,42409.0,42404.0,0.0001349]
[1646335093667,0.11652673,42409.0,42404.0,0.0004047]
[1646335094271,0.11652673,42409.0,42404.0,0.0001349]
[1646335094468,0.2509,42415.0,42404.0,0.0001349]
[1646335094469,0.09857858,42411.0,42404.0,0.00015179]
[1646335094869,0.09857858,42411.0,42404.0,0.00030358]
[1646335095070,0.09857858,42411.0,42404.0,0.00045537]
[1646335095469,0.18147228,42407.0,42404.0,0.00030358]
[1646335095702,0.18147228,42407.0,42404.0,0.00015179]
[1646335095896,0.09709526,42403.0,42399.0,0.005]
[1646335096095,0.09709526,42403.0,42399.0,0.00060721]
[1646335096295,0.09709526,42403.0,42399.0,0.00182163]
[1646335096296,0.26330972,42403.0,42399.0,0.00182163]
[1646335096799,0.09709526,42403.0,42399.0,0.00121442]
[1646335096995,0.09709526,42403.0,42399.0,0.00660721]
[1646335097196,0.09709526,42403.0,42399.0,0.006]
[1646335097398,0.09709526,42403.0,42399.0,0.00609701]
[1646335097597,0.09709526,42403.0,42399.0,0.00619402]
[1646335097799,0.09709526,42403.0,42399.0,0.00629103]
[1646335098196,0.09709526,42403.0,42399.0,0.00029103]
[1646335098396,0.09709526,42403.0,42399.0,0.00019402]
[1646335098597,0.09709526,42403.0,42394.0,0.14981437]
[1646335098797,0.09709526,42403.0,42399.0,9.701e-05]
[1646335098998,0.09709526,42403.0,42399.0,0.00629103]
[1646335099649,0.09709526,42403.0,42399.0,0.00619402]
[1646335099845,0.09709526,42403.0,42399.0,0.006]
[1646335100046,0.09709526,42403.0,42399.0,0.00609701]
[1646335100246,0.09709526,42403.0,42399.0,0.00029103]
[1646335100448,0.0123184,42402.0,42399.0,0.00029103]
[1646335100947,0.0123184,42402.0,42399.0,0.00509701]
[1646335101148,0.01225197,42402.0,42399.0,0.005]
[1646335102155,0.01225197,42402.0,42401.0,0.14981437]
[1646335102450,0.18319674,42420.0,42401.0,0.44981437]
[1646335102649,0.18319674,42420.0,42409.0,0.14981437]
[1646335102850,0.18319674,42420.0,42410.0,0.3]
[1646335103100,0.19352689,42414.0,42410.0,0.3]
[1646335103500,0.19607374,42413.0,42409.0,0.14981437]
[1646335104301,0.19352689,42414.0,42409.0,0.14981437]
[1646335104505,0.10416631,42415.0,42410.0,0.3]
[1646335105603,0.25881138,42415.0,42410.0,0.3]
[1646335106403,0.25881138,42415.0,42409.0,0.14981437]
[1646335107052,0.10416631,42415.0,42409.0,0.14981437]
[1646335107255,0.10416631,42415.0,42410.0,0.3]
[1646335108549,0.10416631,42415.0,42404.0,0.30035775]
[1646335108949,0.10416631,42415.0,42411.0,0.14981437]
[1646335110151,0.03459674,42420.0,42411.0,0.14981437]
[1646335110350,0.16817799,42418.0,42412.0,0.3]
[1646335110822,0.16817799,42418.0,42411.0,0.14981437]
[1646335111219,0.10374778,42416.0,42411.0,0.14981437]
[1646335111418,0.26474431,42416.0,42411.0,0.14981437]
[1646335111619,0.10374778,42416.0,42407.0,0.004]
[1646335112223,0.10374778,42416.0,42404.0,0.0003246]
[1646335112422,0.15104778,42416.0,42404.0,0.0003246]
[1646335112619,0.08705508,42408.0,42404.0,0.0003246]
[1646335112819,0.08705508,42408.0,42404.0,0.0001082]
[1646335113020,0.08705508,42408.0,42404.0,0.005]
[1646335113221,0.08705508,42408.0,42404.0,0.00515528]
[1646335113524,0.08705508,42408.0,42404.0,0.00546584]
[1646335114122,0.1151,42417.0,42407.0,0.14981437]